fUSD/lending_fUSD_20250228
["ID","MTS","AMOUNT","RATE_DAILY","PERIOD"]
[354803249,1740707552134,-1028.04,0.00060547,120]
[354803250,1740707552144,-1097.3,0.00060547,120]
[354803251,1740707552153,-949.11,0.00060547,120]
[354803252,1740707552163,-879.55,0.00060547,120]
[354803253,1740707552172,-474.56386264,0.00060547,120]
[354803254,1740707552181,-526.49,0.00060547,120]
[354803255,1740707552190,-828.91,0.00060547,120]
[354803256,1740707552200,-814.83,0.00060547,120]
[354803257,1740707552210,-517.4,0.00060547,120]
[354803258,1740707552219,-852.06,0.00060547,120]
[354803259,1740707552229,-630.83681043,0.00060547,120]
[354803260,1740707552239,-1009.91,0.00060547,120]
[354803261,1740707552248,-730.96,0.00060547,120]
[354803262,1740707552258,-1151.75,0.00060547,120]
[354803263,1740707552267,-500.0,0.00060547,120]
[354803264,1740707552277,-885.88,0.00060547,120]
[354803265,1740707552287,-893.14,0.00060547,120]
[354803266,1740707552296,-566.69,0.00060547,120]
[354803267,1740707552305,-710.67,0.00060547,120]
[354803268,1740707552316,-504.0,0.00060547,120]
[354803269,1740707552325,-726.03,0.00060547,120]
[354803270,1740707552335,-1292.45,0.00060547,100]
[354803271,1740707552344,-715.56,0.00060547,120]
[354803272,1740707552354,-500.0,0.00060547,120]
[354803273,1740707552364,-516.93,0.00060547,120]
[354803274,1740707552373,-951.24,0.00060547,120]
[354803275,1740707552382,-741.74,0.00060547,120]
[354803276,1740707552392,-2076.3,0.00060547,120]
[354803277,1740707552402,-608.51,0.00060547,120]
[354803278,1740707552412,-1051.75,0.00060547,120]
[354803279,1740707552422,-1105.65,0.00060547,120]
[354803280,1740707552431,-935.9,0.00060547,120]
[354803281,1740707552441,-1021.57,0.00060547,120]
[354803282,1740707552450,-678.63,0.00060547,120]
[354803283,1740707552460,-847.2,0.00060547,120]
[354803284,1740707552469,-927.57,0.00060547,120]
[354803285,1740707552479,-1273.87,0.00060547,120]
[354803286,1740707552488,-500.0,0.00060547,120]
[354803287,1740707552498,-762.62,0.00060547,120]
[354803288,1740707552507,-840.01,0.00060547,120]
[354803289,1740707552518,-795.43,0.00060547,120]
[354803290,1740707552530,-575.37,0.00060547,120]
[354803291,1740707552539,-695.08,0.00060547,120]
[354803292,1740707552549,-1111.02,0.00060547,120]
[354803293,1740707552559,-919.96,0.00060547,120]
[354803294,1740707552568,-612.37,0.00060547,120]
[354803295,1740707552577,-639.59,0.00060547,120]
[354803296,1740707552587,-2029.62,0.00060547,120]
[354803297,1740707552597,-500.0,0.00060547,120]
[354803298,1740707552608,-790.67,0.00060547,120]
[354803299,1740707552618,-1308.82,0.00060547,120]
[354803300,1740707552627,-551.57,0.00060547,120]
[354803301,1740707552636,-714.61,0.00060547,120]
[354803302,1740707552646,-745.48,0.00060547,120]
[354803303,1740707552654,-646.72,0.00060547,120]
[354803304,1740707552663,-1510.89,0.00060547,120]
[354803305,1740707552673,-1169.82,0.00060547,120]
[354803306,1740707552682,-2056.21,0.00060547,120]
[354803307,1740707552691,-1119.09,0.00060547,120]
[354803308,1740707552701,-488.53003579,0.00060547,120]
[354803309,1740707552710,-532.93,0.00060547,120]
[354803310,1740707552720,-729.17,0.00060547,120]
[354803311,1740707552729,-170.21971589,0.00060547,120]
[354803312,1740707552739,-845.3,0.00060547,120]
[354803313,1740707552748,-886.83,0.00060547,120]
[354803314,1740707552758,-500.0,0.00060547,120]
[354803315,1740707552767,-650.9,0.00060547,120]
[354803316,1740707552776,-971.67,0.00060547,120]
[354803317,1740707552786,-511.14,0.00060547,120]
[354803318,1740707552796,-150.0,0.00060582,120]
[354803319,1740707552806,-150.0,0.00060593,120]
[354803320,1740707552817,-247.51848023,0.00060613,120]
[354803321,1740707552826,-150.0,0.00060641,120]
[354803322,1740707552836,-150.0,0.00060662,120]
[354803323,1740707552845,-247.51848023,0.0006068,120]
[354803324,1740707552855,-150.0,0.00060724,120]
[354803325,1740707552864,-150.0,0.00060742,120]
[354803326,1740707552873,-247.51848023,0.00060747,120]
[354803327,1740707552882,-247.51848023,0.00060815,120]
[354803328,1740707552892,-154.618068,0.00060821,120]
[354803329,1740707552901,-4105.716146,0.00060821,120]
[354803330,1740707552911,-1424.950955,0.00060821,120]
[354803331,1740707552920,-159.164146,0.00060821,120]
[354803332,1740707552930,-570.68,0.00060821,120]
[354803333,1740707552939,-509.69,0.00060821,120]
[354803334,1740707552948,-828.19,0.00060821,120]
[354803335,1740707552958,-500.0,0.00060821,120]
[354803336,1740707552968,-1852.03,0.00060821,120]
[354803337,1740707552977,-373.07492438,0.00060821,120]
[354803338,1740707552987,-514.69,0.00060821,120]
[354803339,1740707552996,-500.0,0.00060821,120]
[354803340,1740707553005,-489.46978763,0.00060821,120]
[354803341,1740707553015,-511.56,0.00060821,120]
[354803342,1740707553024,-551.51,0.00060821,120]
[354803343,1740707553034,-1099.38,0.00060821,120]
[354803344,1740707553044,-1641.04,0.00060821,120]
[354803345,1740707553055,-759.23,0.00060821,120]
[354803346,1740707553065,-585.19,0.00060821,120]
[354803347,1740707553075,-509.82,0.00060821,120]
[354803348,1740707553084,-530.22,0.00060821,120]
[354803349,1740707553095,-578.23,0.00060821,120]
[354803350,1740707553105,-509.64,0.00060821,120]
[354803351,1740707553115,-587.4,0.00060821,120]
[354803352,1740707553125,-600.42,0.00060821,120]
[354803353,1740707553135,-951.38,0.00060821,2]
[354803354,1740707553145,-630.94,0.00060821,120]
[354803355,1740707553156,-1478.07,0.00060821,120]
[354803356,1740707553166,-594.92,0.00060821,120]
[354803357,1740707553175,-768.84,0.00060821,120]
[354803358,1740707553186,-1119.62,0.00060821,120]
[354803359,1740707553196,-580.73,0.00060821,120]
[354803360,1740707553206,-517.91,0.00060821,120]
[354803361,1740707553216,-1543.06,0.00060821,120]
[354803362,1740707553226,-533.37,0.00060821,120]
[354803363,1740707553236,-1220.35,0.00060821,120]
[354803364,1740707553246,-744.65,0.00060821,120]
[354803365,1740707553256,-1028.04,0.00060821,120]
[354803366,1740707553266,-1097.3,0.00060821,120]
[354803367,1740707553276,-949.11,0.00060821,120]
[354803368,1740707553286,-879.55,0.00060821,120]
[354803369,1740707553296,-526.49,0.00060821,120]
[354803370,1740707553306,-828.91,0.00060821,120]
[354803371,1740707553317,-814.83,0.00060821,120]
[354803372,1740707553327,-517.4,0.00060821,120]
[354803373,1740707553336,-852.06,0.00060821,120]
[354803374,1740707553346,-1009.91,0.00060821,120]
[354803375,1740707553356,-730.96,0.00060821,120]
[354803376,1740707553366,-1151.75,0.00060821,120]
[354803377,1740707553377,-500.0,0.00060821,120]
[354803378,1740707553387,-885.88,0.00060821,120]
[354803379,1740707553397,-893.14,0.00060821,120]
[354803380,1740707553407,-566.69,0.00060821,120]
[354803381,1740707553417,-710.67,0.00060821,120]
[354803382,1740707553427,-504.0,0.00060821,120]
[354803383,1740707553437,-726.03,0.00060821,120]
[354803384,1740707553447,-1292.45,0.00060821,100]
[354803385,1740707553457,-715.56,0.00060821,120]
[354803386,1740707553466,-240.67738223,0.00060821,120]
[354803387,1740707553476,-516.93,0.00060821,120]
[354803388,1740707553485,-951.24,0.00060821,120]
[354803389,1740707553495,-741.74,0.00060821,120]
[354803390,1740707553504,-2076.3,0.00060821,120]
[354803391,1740707553515,-608.51,0.00060821,120]
[354803392,1740707553527,-1051.75,0.00060821,120]
[354803393,1740707553536,-1105.65,0.00060821,120]
[354803394,1740707553546,-935.9,0.00060821,120]
[354803395,1740707553555,-1021.57,0.00060821,120]
[354803396,1740707553567,-678.63,0.00060821,120]
[354803397,1740707553578,-847.2,0.00060821,120]
[354803398,1740707553588,-927.57,0.00060821,120]
[354803399,1740707553598,-1273.87,0.00060821,120]
[354803400,1740707553610,-500.0,0.00060821,120]
[354803401,1740707553620,-762.62,0.00060821,120]
[354803402,1740707553630,-840.01,0.00060821,120]
[354803403,1740707553640,-795.43,0.00060821,120]
[354803404,1740707553649,-575.37,0.00060821,120]
[354803405,1740707553659,-695.08,0.00060821,120]
[354803406,1740707553673,-1111.02,0.00060821,120]
[354803407,1740707553685,-919.96,0.00060821,120]
[354803408,1740707553695,-612.37,0.00060821,120]
[354803409,1740707553706,-639.59,0.00060821,120]
[354803410,1740707553716,-2029.62,0.00060821,120]
[354803411,1740707553726,-500.0,0.00060821,120]
[354803412,1740707553737,-790.67,0.00060821,120]
[354803413,1740707553747,-1308.82,0.00060821,120]
[354803414,1740707553756,-551.57,0.00060821,120]
[354803415,1740707553767,-714.61,0.00060821,120]
[354803416,1740707553776,-745.48,0.00060821,120]
[354803417,1740707553786,-646.72,0.00060821,120]
[354803418,1740707553796,-1510.89,0.00060821,120]
[354803419,1740707553806,-1169.82,0.00060821,120]
[354803420,1740707553816,-2056.21,0.00060821,120]
[354803421,1740707553827,-1119.09,0.00060821,120]
[354803422,1740707553837,-532.93,0.00060821,120]
[354803423,1740707553846,-729.17,0.00060821,120]
[354803424,1740707553855,-845.3,0.00060821,120]
[354803425,1740707553866,-886.83,0.00060821,120]
[354803426,1740707553875,-599.03805058,0.00060821,120]
[354803427,1740707553885,-650.9,0.00060821,120]
[354803428,1740707553895,-971.67,0.00060821,120]
[354803429,1740707553905,-511.14,0.00060821,120]
[354803430,1740707553915,-150.0,0.00060823,120]
[354803431,1740707553925,-208.0,0.0006083,120]
[354803432,1740707553936,-1061.0,0.00060848,120]
[354803433,1740707553945,-150.0,0.00060854,120]
[354803434,1740707553955,-206.0,0.0006086,30]
[354803435,1740707553965,-247.51848023,0.00060882,120]
[354803436,1740707553975,-150.0,0.00060903,120]
[354803437,1740707553985,-6000.0,0.00060904,120]
[354803438,1740707553996,-247.51848023,0.00060949,120]
[354803439,1740707554006,-150.0,0.00060983,120]
[354803440,1740707554015,-150.0,0.00060985,120]
[354803441,1740707554025,-1300.0,0.00060986,120]
[354803442,1740707554035,-1400.0,0.00060986,120]
[354803443,1740707554045,-150.0,0.00060992,120]
[354803444,1740707554054,-1000000.0,0.00061,120]
[354803445,1740707554065,-818299.47388897,0.00061,120]
[354803446,1740707554411,-592.2810153,0.00061,120]
[354803447,1740707554423,-3466.32335704,0.00061,120]
[354803448,1740707554435,-776.37479597,0.00061,120]
[354803449,1740707554447,-826.46,0.00061,120]
[354803450,1740707554458,-5051.12500115,0.00061,120]
[354803451,1740707554470,-13928.44934657,0.00061,120]
[354803452,1740707554482,-22218.884,0.00061,120]
[354803453,1740707554498,-822.59177,0.00057808,120]
[354803454,1740707554511,-1448.53823,0.00057808,120]
[354803455,1740707554525,-2725.06181,0.00061,120]
[354803456,1740707554536,-582.72404541,0.00061,120]
[354803457,1740707554563,-150.0,0.00029055,2]
[354803458,1740707554573,-150.0,0.00029116,2]
[354803459,1740707554583,-704.59,0.00058356,120]
[354803460,1740707554592,-11370.41,0.00061,120]
[354803461,1740707554605,-3688.93812114,0.00061,120]
[354803462,1740707554617,-5264.0,0.00061,120]
[354803463,1740707554629,-6086.67010818,0.00061,120]
[354803464,1740707554640,-105122.82451027,0.00061,120]
[354803465,1740707554649,-1000.0,0.00061,120]
[354803466,1740707554659,-21501.47247082,0.00061,120]
[354803467,1740707554671,-7392.36839379,0.00061,120]
[354803468,1740707554682,-846.58915483,0.00061,120]
[354803469,1740707554718,-256.52999981,0.00020956,2]
[354803470,1740707554730,-701.10391604,0.00020956,2]
[354803471,1740707554740,-150.0,0.00028927,2]
[354803472,1740707554749,-150.0,0.00029049,2]
[354803473,1740707554759,-150.0,0.00029135,2]
[354803474,1740707554770,-651.56,0.00055342,120]
[354803475,1740707554780,-2271.13,0.00058082,120]
[354803476,1740707555011,-14036.44104656,0.00061,120]
[354803479,1740707796957,221.4335362,0.000148,2]
[354803481,1740708292927,693.0,0.00023,30]
[354803534,1740708512698,-150.0,0.00014899,2]
[354803535,1740708512725,-300.0,0.00014899,2]
[354803536,1740708512752,-5466.25165196,0.000149,2]
[354803537,1740708512782,-5916.25165196,0.000149,2]
[354803538,1740708512820,-5311.74409608,0.000149,2]
[354803539,1740708512848,-604.50755588,0.000149,2]
[354803540,1740708512878,-4230.95464412,0.000149,2]
[354803541,1740708512906,-1685.29700784,0.000149,2]
[354803542,1740708512941,-3198.11789216,0.000149,2]
[354803543,1740708512968,-2718.1337598,0.000149,2]
[354803544,1740708513000,-5916.25165196,0.000149,2]
[354803545,1740708513033,-5916.25165196,0.000149,2]
[354803546,1740708513071,-5916.25165196,0.000149,2]
[354803547,1740708513135,-390.9220788,0.000149,2]
[354803548,1740708513163,-392.0049381,0.000149,2]
[354804311,1740708631582,-150.0,0.0001639,2]
[354804313,1740708631592,-450.0,0.0001639,2]
[354804316,1740708631602,-150.308,0.00019025,2]
[354804319,1740708631612,-3531.11171799,0.00023252,2]
[354804321,1740708631621,-1468.16,0.00023958,5]
[354804323,1740708631631,-234.23,0.00026849,2]
[354804325,1740708631640,-399.98,0.00028959,2]
[354804327,1740708631650,-141.93268894,0.00028959,14]
[354804330,1740708631662,-579.92731106,0.00028959,14]
[354804332,1740708631671,-200.24528038,0.00029695,2]
[354804334,1740708631680,-7497.52740856,0.00029841,2]
[354804338,1740708631747,-3400.0,0.00029841,2]
[354804339,1740708631791,-460.51676153,0.00029841,2]
[354804340,1740708633584,-42425.24908681,0.00029841,2]
[354804341,1740708633595,-185.04,0.00031555,2]
[354804342,1740708633604,-203.91694076,0.000319,6]
[354804343,1740708633615,-500.0,0.00032055,2]
[354804344,1740708633624,-500.0,0.00032055,2]
[354804345,1740708633634,-500.0,0.00032055,2]
[354804346,1740708633643,-500.0,0.00032055,2]
[354804347,1740708633653,-935.0,0.00032055,2]
[354804348,1740708633663,-1000.0,0.00032055,2]
[354804349,1740708633673,-234.23,0.00032646,2]
[354804350,1740708633682,-167.89,0.00033504,120]
[354804351,1740708633692,-23900.0,0.00033508,2]
[354804353,1740708633702,-250.0,0.00033653,2]
[354804355,1740708633711,-150.0,0.000353,2]
[354804356,1740708633720,-1000.0,0.00036062,2]
[354804358,1740708633731,-260.82,0.000371,7]
[354804359,1740708633740,-191.05812442,0.000372,103]
[354804360,1740708633750,-234.23,0.00038443,2]
[354804361,1740708633759,-1000.0,0.00040069,2]
[354804362,1740708633768,-367.36,0.00041096,120]
[354804363,1740708633777,-217.35,0.000414,14]
[354804364,1740708633787,-150.0,0.00041825,120]
[354804365,1740708633796,-182.73,0.00043168,2]
[354804366,1740708633805,-200.0,0.00043734,2]
[354804367,1740708633815,-1000.0,0.00044076,2]
[354804368,1740708633824,-234.23,0.00044239,2]
[354804369,1740708633834,-182.73,0.00044607,2]
[354804370,1740708633843,-150.0,0.00044632,7]
[354804371,1740708633853,-177.29,0.00045146,2]
[354804372,1740708633863,-1468.161,0.00045468,74]
[354804373,1740708633876,-182.73,0.00046046,2]
[354804374,1740708633886,-154.52,0.000463,39]
[354804375,1740708633895,-154.52,0.000463,39]
[354804376,1740708633905,-154.52,0.000463,39]
[354804377,1740708633915,-154.52,0.000463,39]
[354804378,1740708633925,-154.52,0.000463,39]
[354804379,1740708633934,-154.52,0.000463,39]
[354804380,1740708633944,-154.52,0.000463,39]
[354804381,1740708633953,-182.73,0.00047485,2]
[354804382,1740708633965,-1000.0,0.00048083,2]
[354804383,1740708633975,-252.84525582,0.000488,120]
[354804384,1740708633986,-179.5,0.0005,120]
[354804385,1740708633996,-234.23,0.00050036,2]
[354804386,1740708634006,-154.52,0.000507,48]
[354804387,1740708634015,-154.52,0.000507,48]
[354804388,1740708634025,-154.52,0.000507,48]
[354804389,1740708634034,-154.52,0.000507,48]
[354804390,1740708634043,-154.52,0.000507,48]
[354804391,1740708634054,-154.52,0.000507,48]
[354804392,1740708634063,-154.52,0.000507,48]
[354804393,1740708634071,-154.52,0.000507,48]
[354804394,1740708634080,-154.52,0.000507,48]
[354804395,1740708634089,-154.52,0.000507,48]
[354804396,1740708634098,-154.52,0.000507,48]
[354804397,1740708634107,-154.52,0.000507,48]
[354804398,1740708634117,-154.52,0.000507,48]
[354804399,1740708634126,-154.52,0.000507,48]
[354804400,1740708634134,-216.0,0.000519,120]
[354804401,1740708634143,-500.0,0.00052118,23]
[354804402,1740708634153,-500.0,0.00052118,23]
[354804403,1740708634162,-500.0,0.00052118,23]
[354804404,1740708634172,-500.0,0.00052118,23]
[354804405,1740708634182,-500.0,0.00052118,23]
[354804406,1740708634191,-500.0,0.00052118,23]
[354804407,1740708634200,-500.0,0.00052118,23]
[354804408,1740708634209,-500.0,0.00052118,23]
[354804409,1740708634219,-500.0,0.00052118,23]
[354804410,1740708634228,-500.0,0.00052118,23]
[354804411,1740708634239,-527.93905867,0.00052118,43]
[354804412,1740708634248,-150.0,0.0005303,120]
[354804413,1740708634257,-574.149872,0.000532,2]
[354804414,1740708634266,-1654.30962248,0.00053953,120]
[354804415,1740708634276,-886.91701801,0.00053978,15]
[354804416,1740708634285,-11248.49975792,0.00054,8]
[354804423,1740708637520,-286.68101648,0.00019552,2]
[354804424,1740708637597,-825.31898352,0.00019552,2]
[354804425,1740708637606,-1112.0,0.00022552,2]
[354804426,1740708637615,-6231.48101648,0.00054,8]
[354804427,1740708637626,-3125.49658661,0.00054,8]
[354804428,1740708637674,-416.88260603,0.00054,8]
[354804429,1740708637817,-608.763,0.00025552,2]
[354804430,1740708637828,-3177.30720146,0.00054,8]
[354804431,1740708637838,-150.0,0.00054078,120]
[354804432,1740708637847,-1967.30237608,0.00054472,120]
[354804433,1740708637856,-1654.30962248,0.00054532,120]
[354804434,1740708637866,-1439.4266,0.00054694,2]
[354804435,1740708637882,-886.91701801,0.00054747,15]
[354804436,1740708637891,-327.84918197,0.00054794,120]
[354804437,1740708637903,-174.99931529,0.00054794,120]
[354804438,1740708637912,-500.0,0.00054794,120]
[354804443,1740708638068,-500.0,0.00054794,120]
[354804444,1740708638079,-599.02670259,0.00054794,120]
[354804445,1740708638089,-500.0,0.00054794,120]
[354804446,1740708638098,-500.0,0.00054794,120]
[354804447,1740708638107,-500.0,0.00054794,120]
[354804448,1740708638116,-621.34561417,0.00054794,120]
[354804449,1740708638126,-529.9757912,0.00054794,120]
[354804450,1740708638135,-500.0,0.00054794,120]
[354804451,1740708638144,-500.0,0.00054794,120]
[354804452,1740708638154,-500.0,0.00054794,120]
[354804453,1740708638163,-362.14344664,0.00054794,120]
[354804454,1740708638173,-517.15088531,0.00054794,120]
[354804455,1740708638182,-500.0,0.00054794,120]
[354804456,1740708638191,-500.0,0.00054794,2]
[354804457,1740708638200,-505.23125715,0.00054794,120]
[354804458,1740708638210,-500.0,0.00054794,120]
[354804459,1740708638220,-500.0,0.00054794,120]
[354804460,1740708638228,-500.0,0.00054794,120]
[354804461,1740708638238,-500.0,0.00054794,120]
[354804462,1740708638248,-511.04351108,0.00054794,120]
[354804463,1740708638257,-500.0,0.00054794,120]
[354804464,1740708638267,-500.0,0.00054794,120]
[354804465,1740708638276,-500.0,0.00054794,120]
[354804466,1740708638285,-587.05,0.00054794,120]
[354804467,1740708638295,-500.0,0.00054794,120]
[354804468,1740708638304,-500.0,0.00054794,120]
[354804469,1740708638314,-500.0,0.00054794,120]
[354804470,1740708638323,-610.99,0.00054794,120]
[354804471,1740708638332,-504.78249301,0.00054794,120]
[354804472,1740708638342,-500.0,0.00054794,120]
[354804473,1740708638351,-500.0,0.00054794,120]
[354804474,1740708638361,-500.0,0.00054794,120]
[354804475,1740708638370,-500.0,0.00054794,120]
[354804476,1740708638380,-500.0,0.00054794,120]
[354804477,1740708638389,-500.0,0.00054794,120]
[354804478,1740708638399,-394.60665922,0.00054794,120]
[354804484,1740708639615,-105.39334078,0.00054794,120]
[354804485,1740708639625,-500.0,0.00054794,120]
[354804486,1740708639635,-500.0,0.00054794,120]
[354804487,1740708639644,-511.19783658,0.00054794,120]
[354804488,1740708639653,-500.0,0.00054794,120]
[354804489,1740708639663,-374.54706948,0.00054794,120]
[354804490,1740708639672,-500.0,0.00054794,120]
[354804491,1740708639681,-205.94546,0.00054794,120]
[354804492,1740708639691,-156.846299,0.00054794,120]
[354804493,1740708639701,-1364.766012,0.00054794,120]
[354804494,1740708639710,-500.0,0.00054794,120]
[354804495,1740708639719,-379.297797,0.00054794,120]
[354804496,1740708639729,-500.0,0.00054794,120]
[354804497,1740708639739,-500.0,0.00054794,120]
[354804498,1740708639748,-500.0,0.00054794,120]
[354804499,1740708639758,-500.0,0.00054794,120]
[354804500,1740708639767,-500.0,0.00054794,120]
[354804501,1740708639776,-500.0,0.00054794,120]
[354804502,1740708639785,-500.0,0.00054794,120]
[354804503,1740708639794,-410.93,0.00054794,120]
[354804504,1740708639804,-500.0,0.00054794,120]
[354804505,1740708639813,-500.0,0.00054794,120]
[354804506,1740708639822,-500.0,0.00054794,120]
[354804507,1740708639832,-500.0,0.00054794,120]
[354804508,1740708639842,-500.0,0.00054794,120]
[354804509,1740708639852,-1446.15,0.00054794,120]
[354804510,1740708639862,-500.0,0.00054794,120]
[354804511,1740708639873,-500.0,0.00054794,120]
[354804512,1740708639882,-500.0,0.00054794,120]
[354804513,1740708639894,-500.0,0.00054794,120]
[354804514,1740708639903,-500.0,0.00054794,120]
[354804515,1740708639912,-500.0,0.00054794,120]
[354804516,1740708639923,-500.0,0.00054794,120]
[354804517,1740708639933,-575.10391506,0.00054794,120]
[354804518,1740708639981,-88.09608494,0.00054794,120]
[354804519,1740708639992,-500.0,0.00054794,120]
[354804520,1740708640000,-65.39191506,0.00054794,120]
[354804521,1740708640011,-434.60808494,0.00054794,120]
[354804522,1740708640021,-139.80560912,0.00054794,120]
[354804523,1740708640032,-360.19439088,0.00054794,120]
[354804524,1740708640041,-18.83560912,0.00054794,120]
[354804526,1740708640056,-481.16439088,0.00054794,120]
[354804528,1740708640066,-500.0,0.00054794,120]
[354804530,1740708640075,-500.0,0.00054794,120]
[354804531,1740708640084,-500.0,0.00054794,120]
[354804534,1740708640093,-2.03560892,0.00054794,120]
[354804536,1740708640105,-351.03411824,0.00054794,120]
[354804538,1740708640115,-259.32486672,0.00054794,120]
[354804540,1740708640128,-500.0,0.00054794,120]
[354804542,1740708640137,-313.29195458,0.00054794,120]
[354804544,1740708640146,-500.0,0.00054794,120]
[354804546,1740708640155,-500.0,0.00054794,120]
[354804548,1740708640164,-500.0,0.00054794,120]
[354804550,1740708640173,-500.0,0.00054794,120]
[354804552,1740708640182,-500.0,0.00054794,120]
[354804554,1740708640191,-500.0,0.00054794,120]
[354804556,1740708640200,-500.0,0.00054794,120]
[354804558,1740708640209,-500.0,0.00054794,120]
[354804560,1740708640218,-500.0,0.00054794,120]
[354804562,1740708640226,-500.0,0.00054794,120]
[354804564,1740708640236,-510.54,0.00054794,120]
[354804566,1740708640245,-500.0,0.00054794,120]
[354804568,1740708640254,-500.0,0.00054794,120]
[354804570,1740708640263,-500.0,0.00054794,120]
[354804572,1740708640272,-500.0,0.00054794,120]
[354804574,1740708640281,-500.0,0.00054794,120]
[354804576,1740708640290,-500.0,0.00054794,120]
[354804577,1740708640299,-500.0,0.00054794,120]
[354804579,1740708640309,-500.0,0.00054794,120]
[354804581,1740708640319,-500.0,0.00054794,120]
[354804584,1740708640328,-500.0,0.00054794,120]
[354804585,1740708640338,-500.0,0.00054794,120]
[354804587,1740708640348,-500.0,0.00054794,120]
[354804589,1740708640357,-500.0,0.00054794,120]
[354804591,1740708640366,-500.0,0.00054794,120]
[354804593,1740708640374,-579.62,0.00054794,120]
[354804595,1740708640383,-500.0,0.00054794,120]
[354804597,1740708640394,-500.0,0.00054794,120]
[354804599,1740708640403,-1000.0,0.00054794,120]
[354804601,1740708640412,-500.0,0.00054794,120]
[354804603,1740708640422,-500.0,0.00054794,120]
[354804605,1740708640431,-500.0,0.00054794,120]
[354804607,1740708640440,-716.47,0.00054794,120]
[354804609,1740708640449,-500.0,0.00054794,10]
[354804611,1740708640458,-500.0,0.00054794,120]
[354804613,1740708640467,-500.0,0.00054794,120]
[354804615,1740708640476,-37.12315959,0.00054794,120]
[354804618,1740708640490,-462.87684041,0.00054794,120]
[354804620,1740708640499,-500.0,0.00054794,120]
[354804622,1740708640509,-500.0,0.00054794,120]
[354804624,1740708640518,-42.89767567,0.00054794,120]
[354804634,1740708640604,-457.10232433,0.00054794,120]
[354804635,1740708640614,-500.0,0.00054794,120]
[354804636,1740708640623,-68.77146668,0.00054794,120]
[354804637,1740708640637,-431.22853332,0.00054794,120]
[354804638,1740708640646,-500.0,0.00054794,120]
[354804639,1740708640655,-500.0,0.00054794,120]
[354804640,1740708640664,-500.0,0.00054794,120]
[354804641,1740708640674,-508.42682238,0.00054794,120]
[354804642,1740708640683,-285.3443718,0.00054794,2]
[354804643,1740708640694,-214.6556282,0.00054794,2]
[354804644,1740708640703,-40.7678518,0.00054794,100]
[354804645,1740708640725,-459.2321482,0.00054794,100]
[354804646,1740708640734,-1181.0618918,0.00054794,120]
[354804647,1740708640745,-493.86506809,0.00054794,120]
[354804648,1740708640757,-305.58304011,0.00054794,120]
[354804649,1740708640766,-500.0,0.00054794,120]
[354804650,1740708640775,-106.33617646,0.00054794,120]
[354804651,1740708640787,-393.66382354,0.00054794,120]
[354804652,1740708640796,-500.0,0.00054794,120]
[354804653,1740708640806,-500.0,0.00054794,120]
[354804654,1740708640815,-388.12326294,0.00054794,120]
[354804655,1740708640827,-111.87673706,0.00054794,120]
[354804656,1740708640836,-500.0,0.00054794,120]
[354804657,1740708640846,-500.0,0.00054794,120]
[354804658,1740708640856,-500.0,0.00054794,120]